fUSD/lending_fUSD_20240211
["ID","MTS","AMOUNT","RATE_DAILY","PERIOD"]
[313733554,1707631809195,-795.99788693,0.00022798,2]
[313733555,1707631809217,-500.0,0.00022849,2]
[313733556,1707631809238,-500.0,0.00022849,2]
[313733557,1707631809258,-500.0,0.00022849,2]
[313733558,1707631809282,-195.69905408,0.00022849,2]
[313733559,1707631809303,-500.0,0.00022849,2]
[313733560,1707631809324,-422.18085118,0.00022849,2]
[313733561,1707631809345,-500.0,0.00022849,2]
[313733562,1707631809366,-500.0,0.00022849,2]
[313733563,1707631809391,-158.02009457,0.00022849,2]
[313733564,1707631809412,-195.64648384,0.0002285,3]
[313733565,1707631809435,-468198.06587096,0.0002285,2]
[313733566,1707631809457,-399.94209826,0.00022887,2]
[313733567,1707631809481,-434.00967777,0.00022898,2]
[313733568,1707631809503,-699.56150323,0.00022898,2]
[313733569,1707631809524,-155.96341088,0.00022898,2]
[313733570,1707631809545,-182.97552425,0.00022898,2]
[313733571,1707631809567,-1138.66181458,0.00022898,2]
[313733572,1707631809587,-213.8870834,0.00022898,2]
[313733573,1707631809608,-14174.71634641,0.00022898,2]
[313733574,1707631809628,-482.07365906,0.00022898,2]
[313733575,1707631809659,-6580.25483405,0.00022898,2]
[313733576,1707631809683,-222.76177925,0.00022898,2]
[313733577,1707631809705,-574.32953484,0.00022898,2]
[313733578,1707631809726,-361.07388945,0.00022898,2]
[313733579,1707631809749,-511.10663353,0.00022898,2]
[313733580,1707631809771,-422.47329063,0.00022898,2]
[313733581,1707631809793,-1468.08266721,0.00022898,2]
[313733582,1707631809815,-306.02231479,0.00022898,2]
[313733583,1707631809837,-334.16404361,0.00022898,2]
[313733584,1707631809860,-180.19748599,0.00022898,2]
[313733585,1707631809882,-30576.95908675,0.00022898,2]
[313733586,1707631809903,-415.49586805,0.00022899,2]
[313733587,1707631809925,-199.825732,0.00022899,2]
[313733588,1707631809946,-9387.68297059,0.00022899,2]
[313733589,1707631809967,-150.01,0.00022899,2]
[313733590,1707631809988,-3313.68237718,0.00022899,2]
[313733591,1707631810009,-15260.85786316,0.000229,2]
[313733592,1707631810032,-163.79858637,0.000229,2]
[313733593,1707631810053,-773.85422474,0.00022998,2]
[313733594,1707631810074,-272.33443923,0.00022998,2]
[313733595,1707631810095,-155.44086497,0.00022998,2]
[313733596,1707631810117,-1046.76795033,0.00022998,2]
[313733597,1707631810140,-156.79735296,0.00022998,2]
[313733598,1707631810162,-209.69859176,0.00022998,2]
[313733599,1707631810184,-202.60225948,0.00022998,2]
[313733600,1707631810205,-155.28490805,0.00022998,2]
[313733601,1707631810226,-2925.87598949,0.00022998,2]
[313733602,1707631810247,-216.66453651,0.00022998,2]
[313733603,1707631810268,-1056.54541768,0.00022998,2]
[313733604,1707631810289,-191.82366484,0.00022998,2]
[313733605,1707631810311,-2992.50710475,0.00022999,2]
[313733606,1707631810333,-157.76880464,0.00022999,2]
[313733607,1707631810354,-351.38522748,0.00022999,2]
[313733608,1707631810378,-200.0,0.00022999,2]
[313733609,1707631810402,-408.98531189,0.00022999,2]
[313733610,1707631810424,-170.66520933,0.00022999,2]
[313733611,1707631810446,-247491.78387558,0.00023,2]
[313733612,1707631810469,-1659902.56843365,0.00023,2]
[313733613,1707631810491,-986886.97252559,0.00023,2]
[313733614,1707631810513,-269094.5724874,0.00023,2]
[313733615,1707631810598,179.40015751,0.00021142,2]
[313733616,1707631810622,11880.81177344,0.00021142,2]
[313733617,1707631820673,365.7107022,0.00020649,2]
[313733618,1707631821875,7135.41328258,0.00021288,2]
[313733619,1707631826629,19245.6336,0.00021938,2]
[313733620,1707631827208,157.35051429,0.00021288,2]
[313733630,1707631831420,-704.3880032,0.00022076,2]
[313733631,1707631831430,-9135.4253242,0.00022077,2]
[313733632,1707631831442,-564.28815814,0.00022077,2]
[313733633,1707631831454,-6091.80282553,0.00022077,2]
[313733634,1707631831477,-346.80171835,0.00022077,2]
[313733635,1707631831490,-253.63219258,0.00022077,2]
[313733636,1707631831504,-304.47,0.00022077,2]
[313733637,1707631831539,-9909.54373388,0.00022077,2]
[313733638,1707631831551,-389.81167713,0.00022077,2]
[313733639,1707631831589,-22383.80052923,0.00022077,2]
[313733640,1707631831657,-633.76024372,0.00022077,2]
[313733641,1707631831690,-1021.05941558,0.00022077,2]
[313733642,1707631831703,-6565.78981454,0.00022077,2]
[313733643,1707631831913,2462.027591,0.00021966,2]
[313733646,1707631837397,-150.0,0.00022019,2]
[313733648,1707631837407,-42203.2505585,0.00022077,2]
[313733651,1707631837453,-196.56380862,0.00022077,2]
[313733653,1707631837462,-221.81197113,0.00022077,2]
[313733655,1707631837475,-252.545,0.00022077,2]
[313733660,1707631837512,300.0,0.00021841,2]
[313733661,1707631837568,1500.0,0.00021984,2]
[313733662,1707631837597,300.0,0.00021826,2]
[313733663,1707631837714,-1257.66957467,0.00022046,2]
[313733664,1707631837726,-242.33042533,0.00022046,2]
[313733665,1707631837735,-601.52639111,0.00022076,2]
[313733666,1707631837779,300.0,0.00021886,2]
[313733667,1707631837813,1500.0,0.00021974,2]
[313733670,1707631837900,170.73131423,0.00021288,2]
[313733674,1707631837928,155.0,0.00021288,2]
[313733682,1707631837987,1500.0,0.00021906,2]
[313733686,1707631838015,300.0,0.00021896,2]
[313733691,1707631838061,1500.0,0.00021969,2]
[313733696,1707631838103,317.10977915,0.0002199,2]
[313733700,1707631838136,1500.0,0.00021955,2]
[313733701,1707631838181,1500.0,0.00021883,2]
[313733702,1707631838321,1500.0,0.00021953,2]
[313733703,1707631838424,1500.0,0.00021965,2]
[313733704,1707631839513,238.51969202,0.00021288,2]
[313733705,1707631839606,355.52151911,0.00021288,2]
[313733708,1707631839969,155.8188905,0.00021288,2]
[313733709,1707631840058,12060.21193095,0.00021288,2]
[313733710,1707631840104,-150.0,0.00022019,2]
[313733711,1707631840113,-150.0,0.0002202,2]
[313733712,1707631840122,-1500.0,0.00022025,2]
[313733713,1707631840131,-150.0,0.0002204,2]
[313733714,1707631840141,-150.0,0.00022061,2]
[313733715,1707631840150,-2724.32860001,0.00022076,2]
[313733716,1707631841011,167.33882229,0.00021288,2]
[313733717,1707631841059,7790.06747284,0.00021855,2]
[313733718,1707631841098,155.0,0.00021288,2]
[313733719,1707631841972,172.30354092,0.00021288,2]
[313733722,1707631842399,-2410.65758747,0.00022076,2]
[313733724,1707631842453,-400.30481951,0.00022076,2]
[313733725,1707631842465,-405.20000741,0.00022076,2]
[313733726,1707631842480,-500.0,0.00022076,2]
[313733727,1707631842519,162.47006204,0.00019868,2]
[313733728,1707631842625,-368.53269329,0.00022076,2]
[313733729,1707631842691,-596.00564305,0.00022076,2]
[313733730,1707631842703,-755.53983502,0.00022076,2]
[313733731,1707631842813,-15700.87707346,0.00022076,2]
[313733732,1707631842822,-1142.56291216,0.00022076,2]
[313733733,1707631842832,-1210.87707061,0.00022076,2]
[313733734,1707631843084,284.14882104,0.00021855,2]
[313733735,1707631844119,1193.15798233,0.0002,2]
[313733736,1707631844428,-817.34143612,0.00022076,2]
[313733737,1707631844446,-500.0,0.00022076,2]
[313733738,1707631844459,-155.5378357,0.00022076,2]
[313733739,1707631844473,-3177.26020389,0.00022076,2]
[313733740,1707631844486,-2310.45966614,0.00022076,2]
[313733741,1707631844498,-548.38219036,0.00022076,2]
[313733742,1707631844511,-344.78170716,0.00022076,2]
[313733743,1707631844524,-205.10654597,0.00022076,2]
[313733744,1707631844536,-2424.13041466,0.00022076,2]
[313733745,1707631844586,2000.0,0.00021588,2]
[313733747,1707631844631,-1301.10073228,0.00022076,2]
[313733785,1707631845566,-3706.95531002,0.00022076,2]
[313733787,1707631845578,-1055.84409031,0.00022076,2]
[313733790,1707631845590,-155.0,0.00022076,2]
[313733792,1707631845603,-12817.00046894,0.00022076,2]
[313733845,1707631848583,-756.92162255,0.00022076,2]
[313733846,1707631848592,-479.24110836,0.00022077,2]
[313733847,1707631848638,-0.02139967,0.00022077,2]
[313733848,1707631848992,-15885.55905567,0.00022077,2]
[313733849,1707631849267,10090.0874,0.00021937,2]
[313733850,1707631849336,2936.44877952,0.00021288,2]
[313733851,1707631849432,6178.78392817,0.00021288,2]
[313733852,1707631850840,274.63919748,0.00021633,2]
[313733853,1707631851084,155.0,0.00019867,2]
[313733854,1707631852842,2567.47660081,0.00021413,2]
[313733855,1707631857854,200.0,0.00021614,2]
[313733856,1707631858102,1193.15798233,0.0002,2]
[313733857,1707631859222,155.0,0.00021288,2]
[313733858,1707631859654,331.0,0.00022,2]
[313733859,1707631859857,155.0,0.00021288,2]
[313733860,1707631861879,12060.21193095,0.00021288,2]
[313733861,1707631864524,250.0,0.00021918,2]
[313733862,1707631864786,1957.63251968,0.00021288,2]
[313733863,1707631871066,359.82,0.00021749,2]
[313733864,1707631871269,359.82,0.00021809,2]
[313733865,1707631871484,359.82,0.00021868,2]
[313733866,1707631871690,359.82,0.00021928,2]
[313733867,1707631871746,2025.2,0.00021587,2]
[313733868,1707631872099,359.82,0.00021988,2]
[313733869,1707631874985,1058.22,0.00021587,2]
[313733870,1707631875049,282.39511157,0.00021854,2]
[313733871,1707631876101,1193.15798233,0.0002,2]
[313733872,1707631876839,158.43473891,0.00019867,2]
[313733873,1707631877271,155.0,0.00021413,2]
[313733874,1707631877859,162.0255543,0.00021413,2]
[313733875,1707631880358,4519.5719,0.00021977,2]
[313733876,1707631883876,12060.21193095,0.00021413,2]
[313733877,1707631884782,1631.36043307,0.00021413,2]
[313733878,1707631893687,499.74092434,0.00021977,2]
[313733879,1707631894119,922.44703628,0.0002,2]
[313733880,1707631895098,155.0,0.00021413,2]
[313733881,1707631899874,12060.21193095,0.00021413,2]
[313733882,1707631901988,669.04,0.00021123,2]
[313733883,1707631902079,268.83625673,0.00022,2]
[313733884,1707631904790,1631.36043307,0.00021413,2]
[313733885,1707631908979,150.0,0.00021117,2]
[313733886,1707631911122,155.0,0.00021413,2]
[313733887,1707631914392,724.62,0.0002137,2]
[313733888,1707631914825,215.7492,0.00021977,2]
[313733889,1707631917883,9340.17057773,0.00021117,2]
[313733890,1707631927158,155.0,0.00021117,2]
[313733891,1707631928128,849.93878563,0.00021117,2]
[313733892,1707631929949,165.99,0.000211,2]
[313733893,1707631945159,155.0,0.00021117,2]
[313733894,1707631948873,849.93878563,0.00021117,2]
[313733895,1707631968788,849.93878563,0.00021117,2]
[313733896,1707631988794,849.93878563,0.00021117,2]
[313733897,1707631988855,1076.81,0.00019165,2]
[313733898,1707631989087,1076.81,0.00021429,2]
[313733899,1707631995249,1677.30029758,0.00021936,2]
[313733900,1707632007002,200.0,0.0002108,2]
[313733901,1707632008952,849.93878563,0.00021117,2]
[313733902,1707632011071,169.97,0.00021631,2]
[313733903,1707632014258,1757.8879,0.00021977,2]
[313733904,1707632015197,3988.549,0.00021977,2]
[313733905,1707632016631,333.16061622,0.00021977,2]
[313733906,1707632018395,333.16061621,0.00021979,2]
[313733907,1707632018565,2805.53,0.00021083,2]
[313733908,1707632019148,-770.52841191,0.00022031,2]
[313733909,1707632019167,-364.34693458,0.00022031,2]
[313733910,1707632019187,-497.29265858,0.00022032,2]
[313733911,1707632019207,-4511.3509436,0.00022032,2]
[313733912,1707632019227,-203.73243669,0.00022033,2]
[313733913,1707632019247,-386.55237988,0.00022033,2]
[313733914,1707632019267,-766.19623476,0.00022034,2]
[313733915,1707632019300,333.16061621,0.0002198,2]
[313733916,1707632020754,1500.0,0.00022,2]
[313733917,1707632021097,2929.066812,0.000215,2]
[313733918,1707632021292,184.1,0.00021087,2]
[313733919,1707632025476,4327.55,0.00021097,2]
[313733920,1707632028909,849.93878563,0.00021117,2]
[313733921,1707632034552,497.29265858,0.00021854,2]
[313733922,1707632038652,2526.22,0.00021918,2]
[313733923,1707632044159,203.0,0.00021113,2]
[313733924,1707632045250,200.0,0.00021095,2]
[313733925,1707632048795,849.93878563,0.0002198,2]
[313733926,1707632050790,1000.0,0.00021977,2]
[313733927,1707632052539,185.85953716,0.00021854,2]
[313733928,1707632060694,23900.0,0.00021095,2]
[313733929,1707632061205,2735.24,0.0002127,2]
[313733930,1707632061724,2705.0,0.00021101,2]
[313733931,1707632068794,849.93878563,0.0002198,2]
[313733932,1707632068841,4344.20887056,0.00021977,2]
[313733933,1707632069214,4942.44643134,0.00021977,2]
[313733934,1707632069236,798388.01386866,0.00021977,2]
[313733935,1707632085529,-973.07605628,0.00022026,2]
[313733936,1707632085550,-155.0,0.00022026,2]
[313733937,1707632085569,-775.39441154,0.00022026,2]
[313733938,1707632085589,-400.0,0.00022027,2]
[313733939,1707632085609,-3045.12983694,0.00022027,2]
[313733940,1707632085629,-4651.39969524,0.00022028,2]
[313733941,1707632086806,849.93878563,0.0002198,2]
[313733942,1707632096497,250.0,0.00021111,2]
[313733943,1707632102805,507.35309467,0.00021977,2]
[313733944,1707632105942,500.0,0.00021116,2]
[313733945,1707632120216,6998.56,0.00021918,2]
[313733946,1707632131275,182.32,0.00021111,2]
[313733947,1707632141495,177.2,0.00022,2]
[313733948,1707632143010,169.29714288,0.0002109,2]
[313733949,1707632144797,164.87,0.00021744,2]
[313733950,1707632147634,179.22,0.00021111,2]
[313733951,1707632148062,179.22,0.00026389,120]
[313733952,1707632163958,516.66,0.00022,2]
[313733953,1707632168248,212.71474863,0.00019945,2]
[313733954,1707632169067,2122.3312,0.00021977,2]
[313733955,1707632169435,2500.0,0.00021977,2]
[313733956,1707632219052,700.39,0.00021111,2]
[313733957,1707632234241,15765.08690849,0.00021107,2]
[313733958,1707632234263,2828.67309151,0.00021107,2]
[313733959,1707632239821,7171.32690849,0.00021977,2]
[313733960,1707632239841,2000.0,0.00021977,2]
[313733961,1707632239864,56827.85839151,0.00021977,2]
[313733962,1707632247401,2251.7,0.00021111,2]
[313733963,1707632249413,200.6536,0.00021925,2]
[313733964,1707632253215,159.2481,0.00021977,2]
[313733965,1707632254292,156.73583918,0.00021977,2]
[313733966,1707632264902,301.97,0.00021111,2]
[313733967,1707632275470,1852.42,0.00021111,2]
[313733968,1707632276000,3834.19,0.00021111,2]
[313733969,1707632300724,3801.18276174,0.00021977,2]
[313733970,1707632301191,2836.5013,0.00021977,2]
[313733971,1707632303079,1760.47,0.00021106,2]
[313733972,1707632306892,689.13,0.00021111,2]
[313733973,1707632310177,170.23,0.00016889,2]
[313733974,1707632310386,170.23,0.00019703,2]
[313733975,1707632327201,35719.7302,0.00021977,2]
[313733982,1707632335845,250.0,0.00021918,2]
[313733983,1707632351212,2256.56,0.00021106,2]
[313733984,1707632360085,2000.0,0.00021106,2]
[313733985,1707632364268,157.95,0.00021106,2]
[313733986,1707632364695,103502.8261,0.00021977,2]
[313733987,1707632371765,300.58,0.00021272,2]
[313733988,1707632371974,300.58,0.00021331,2]
[313733989,1707632372408,300.58,0.00021389,2]
[313733990,1707632372569,300.58,0.00021447,2]
[313733991,1707632372766,300.58,0.00021506,2]
[313733992,1707632372970,300.58,0.00021564,2]
[313733993,1707632373311,300.58,0.00021622,2]
[313733994,1707632373450,300.58,0.00021681,2]
[313733995,1707632373593,300.58,0.00021739,2]
[313733996,1707632373788,300.58,0.00021797,2]
[313733997,1707632373988,300.58,0.00021856,2]
[313733998,1707632374173,300.58,0.00021914,2]
[313733999,1707632374515,300.58,0.00021972,2]
[313734000,1707632388649,2448.4571,0.00021977,2]
[313734001,1707632402193,1000.0,0.00021109,2]
[313734002,1707632423112,203.0,0.00021193,2]
[313734003,1707632431431,4228.175,0.00021977,2]
[313734004,1707632432913,948.97,0.00021109,2]
[313734005,1707632433872,205.0,0.00021193,2]
[313734006,1707632452873,200.0,0.00021109,2]
[313734007,1707632456334,2500.0,0.00021977,2]
[313734008,1707632529646,1056.92,0.00019279,2]
[313734009,1707632529840,1056.92,0.00021543,2]
[313734010,1707632533222,150.0,0.00021197,2]
[313734011,1707632541238,346.65030458,0.00021912,2]
[313734012,1707632542108,2705.0,0.00021197,2]
[313734013,1707632546014,346.65030451,0.00021964,2]
[313734014,1707632568044,23900.0,0.00021132,2]
[313734015,1707632574331,1275.74,0.00021138,2]
[313734016,1707632580169,431.23,0.00021136,2]
[313734017,1707632590594,2337.94,0.00021136,2]
[313734018,1707632592169,250.0,0.00021136,2]
[313734019,1707632606881,500.0,0.00021127,2]
[313734020,1707632617139,240.40215044,0.00021136,2]
[313734021,1707632624745,182.32,0.00021138,2]
[313734022,1707632671519,189.91,0.00021138,2]
[313734023,1707632725913,1407.5349,0.00021977,2]
[313734024,1707632731421,3326.03491647,0.00021977,2]
[313734025,1707632734098,359.69865565,0.00021138,2]
[313734026,1707632746481,7432.18645696,0.00022,2]
[313734027,1707632756100,239.79910377,0.00021138,2]
[313734028,1707632759514,775.39441154,0.00022,2]
[313734029,1707632764315,203.0,0.00021369,2]
[313734030,1707632768375,1852.42,0.00021155,2]
[313734031,1707632775968,177.2,0.00022,2]
[313734032,1707632776099,199.83258647,0.00021138,2]
[313734033,1707632786549,170.23,0.00016924,2]
[313734034,1707632793948,250.0,0.00021918,2]
[313734035,1707632798358,199.83258647,0.00021138,2]
[313734036,1707632809126,1442.0,0.00022,2]
[313734037,1707632816351,155.0,0.00016924,2]
[313734038,1707632821043,2000.0,0.00021155,2]
[313734039,1707632836594,155.0,0.00016924,2]
[313734040,1707632844545,200.0,0.00021148,2]
[313734041,1707632860365,155.0,0.00021148,2]
[313734042,1707632876362,155.0,0.00021148,2]
[313734043,1707632896362,155.0,0.00021148,2]
[313734044,1707632902556,250.0,0.00022,2]
[313734045,1707632907753,150.0,0.00022,2]
[313734046,1707632908169,364.34693458,0.00022,2]
[313734047,1707632916359,224.16293237,0.00021148,2]
[313734055,1707632921726,2910.28055192,0.00021977,2]
[313734056,1707632925027,1440.7212,0.00021977,2]
[313734067,1707632971243,150.0,0.00022,2]
[313734068,1707632974811,200.0,0.00021147,2]
[313734069,1707632976894,-973.07605628,0.00022003,2]
[313734070,1707632976914,-7432.18645696,0.00022004,2]
[313734071,1707632976935,-346.65030451,0.00022016,2]
[313734072,1707632976956,-300.58,0.00022031,2]
[313734073,1707632976976,-719.44,0.0002204,2]
[313734074,1707632976996,-726.4,0.00022042,2]
[313734075,1707632977016,-712.68,0.00022045,2]
[313734076,1707632977034,-728.37,0.00022046,2]
[313734077,1707632977053,-421.37399013,0.00022065,2]
[313734078,1707632977072,-499.99,0.00022065,2]
[313734079,1707632977091,-300.0,0.00022066,2]
[313734080,1707632977110,-150.0,0.00022066,2]
[313734081,1707632977129,-6037.54160333,0.00022067,2]
[313734082,1707632977149,-346.65030451,0.00022068,2]
[313734083,1707632977168,-732.51,0.0002207,2]
[313734084,1707632977187,-155.50659837,0.00022075,2]
[313734085,1707632977432,-4183.91180286,0.00022075,2]
[313734086,1707632977581,150.0,0.00022,2]
[313734087,1707632987986,2705.0,0.00021592,2]
[313734088,1707632995494,951.22,0.00019674,2]
[313734089,1707632995700,951.22,0.00021938,2]
[313734094,1707633000901,150.29,0.00021812,2]
[313734095,1707633001044,150.29,0.00021916,2]
[313734096,1707633003277,474.48,0.0002165,2]
[313734100,1707633031722,-364.34693458,0.00022018,2]
[313734101,1707633031733,-150.29,0.00022019,2]
[313734102,1707633031744,-174.6654795,0.00022064,2]
[313734103,1707633031782,-539.8745205,0.00022064,2]
[313734104,1707633031792,-150.0,0.00022074,2]
[313734105,1707633031801,-396.81806204,0.00022075,2]
[313734106,1707633031820,-89.33832527,0.00022075,2]
[313734107,1707633031830,-392.23665973,0.00022075,2]
[313734108,1707633031841,-535.13675152,0.00022075,2]
[313734109,1707633031851,-3643.31753463,0.00022075,2]
[313734110,1707633031860,-1861.33867425,0.00022075,2]
[313734111,1707633031870,-1147.88684128,0.00022075,2]
[313734112,1707633031879,-626.03266572,0.00022075,2]
[313734113,1707633031889,-204.17365487,0.00022075,2]
[313734115,1707633031898,-770.16281459,0.00022075,2]
[313734117,1707633031908,-2102.95106314,0.00022075,2]
[313734119,1707633031932,-174.45991452,0.00022075,2]
[313734120,1707633031941,-158.63695817,0.00022075,2]
[313734121,1707633031951,-774.62537324,0.00022075,2]
[313734123,1707633031960,-1052.9517355,0.00022075,2]
[313734125,1707633031972,-1170.62277334,0.00022075,2]
[313734126,1707633031984,-525.01690073,0.00022075,2]
[313734127,1707633031996,-512.31,0.00022075,2]
[313734131,1707633039644,-477.66470947,0.00022075,2]
[313734132,1707633039754,-3693.62033792,0.00022075,2]
[313734133,1707633039763,-388.91549222,0.00022076,2]
[313734134,1707633039774,-2680.70715885,0.00022076,2]
[313734135,1707633039783,-44577.11445906,0.00022077,2]
[313734136,1707633039795,-21898.61826,0.00022077,2]
[313734137,1707633039806,-2150.16565339,0.00022077,2]
[313734138,1707633040011,-1425.69716759,0.00022077,2]
[313734139,1707633040023,-772.02561278,0.00022077,2]
[313734156,1707633040247,-429.03416884,0.00022077,2]
[313734157,1707633040260,-633.41427385,0.00022077,2]
[313734158,1707633040272,-600.0,0.00022077,2]
[313734159,1707633040776,-155674.75186966,0.00022077,2]
[313734160,1707633040785,-14192.7721,0.00022077,2]
[313734161,1707633040795,-500.0,0.00022077,2]
[313734162,1707633040804,-736.29,0.00022077,2]
[313734163,1707633040814,-1000.0,0.00022077,2]
[313734164,1707633040823,-297.644,0.00022077,2]
[313734165,1707633040833,-3560.0648,0.00022077,2]
[313734166,1707633040842,-488.1452,0.00022077,2]
[313734167,1707633040851,-6920.51452435,0.00022077,2]
[313734168,1707633040871,-372.03993255,0.00022077,2]
[313734169,1707633040888,-362.946875,0.00022077,2]
[313734170,1707633041384,-68.01986615,0.00022077,2]
[313734171,1707633041404,-793.57873986,0.00022077,2]
[313734172,1707633041416,-251.04163912,0.00022077,2]
[313734196,1707633042612,-715.15,0.00022045,2]
[313734197,1707633042621,-495.21080118,0.00022077,2]
[313734198,1707633042633,-572.09977409,0.00022077,2]
[313734199,1707633042645,-702.38304042,0.00022077,2]
[313734200,1707633042657,-1525.57672096,0.00022077,2]
[313734201,1707633042669,-291.23162982,0.00022077,2]
[313734202,1707633042698,-2390.5060322,0.00022077,2]
[313734203,1707633042710,-651.01243477,0.00022077,2]
[313734204,1707633042739,-24053.63538953,0.00022077,2]
[313734205,1707633042748,-100000.0,0.00022077,2]
[313734206,1707633042757,-200.0,0.000221,2]
[313734207,1707633042766,-346.65030451,0.0002212,2]
[313734208,1707633042775,-1964.0,0.00022122,2]
[313734209,1707633042785,-150.29,0.00022122,2]
[313734210,1707633042794,-700.39,0.00022166,2]
[313734211,1707633043010,-346.65030451,0.00022172,2]
[313734212,1707633043039,-733.44,0.00022177,2]
[313734213,1707633043048,-189.91,0.00022195,2]
[313734214,1707633043057,-254.11384768,0.000222,2]
[313734215,1707633043070,-346.65030451,0.00022224,2]
[313734216,1707633043079,-150.29,0.00022226,2]
[313734217,1707633043088,-250.0,0.00022274,2]
[313734218,1707633043097,-346.65030451,0.00022276,2]
[313734219,1707633043106,-225.53810435,0.0002228,2]
[313734220,1707633043115,-537.60629203,0.00022281,2]
[313734221,1707633043124,-582.16626321,0.00022305,2]
[313734222,1707633043134,-582.16626322,0.00022305,2]
[313734223,1707633043144,-346.65030451,0.00022328,2]
[313734224,1707633043153,-150.29,0.00022329,2]
[313734225,1707633043163,-346.65030451,0.0002238,2]
[313734226,1707633043173,-346.65030451,0.00022432,2]
[313734227,1707633043182,-150.29,0.00022432,2]
[313734228,1707633043191,-164.87,0.00022462,2]
[313734229,1707633043200,-165.17,0.00022476,2]
[313734230,1707633043209,-346.65030451,0.00022484,2]
[313734231,1707633043218,-62366.3146739,0.000225,2]
[313734232,1707633043284,-4963.33101204,0.000225,2]
[313734233,1707633043296,-4527.70628729,0.000225,2]
[313734234,1707633043307,-11999.50698791,0.000225,2]
[313734235,1707633043323,-4474.55107622,0.000225,2]
[313734236,1707633043334,-5174.34212992,0.000225,2]
[313734237,1707633043347,-1565.41493992,0.000225,2]
[313734238,1707633043388,-4160.76804756,0.000225,2]
[313734239,1707633043400,-432.0,0.000225,2]
[313734250,1707633045605,-3778.12508056,0.000225,2]
[313734251,1707633045617,-420.16805019,0.000225,2]
[313734252,1707633045717,-16399.81234908,0.000225,2]
[313734256,1707633046383,-9753.52208107,0.000225,2]
[313734257,1707633046393,-1000.0,0.000225,2]
[313734258,1707633046402,-536.78403873,0.000225,2]
[313734259,1707633046413,-963.21596127,0.000225,2]
[313734260,1707633046422,-150.29,0.00022536,2]
[313734261,1707633046431,-346.65030451,0.00022536,2]
[313734262,1707633046440,-203.0,0.0002254,3]
[313734263,1707633046449,-177.2,0.00022548,2]
[313734264,1707633046458,-489.97894041,0.00022548,2]
[313734265,1707633046467,-150.0,0.00022548,2]
[313734266,1707633046476,-150.0,0.00022548,2]
[313734267,1707633046485,-200.0,0.00022577,2]
[313734268,1707633046495,-200.0,0.00022577,2]
[313734269,1707633046504,-346.65030451,0.00022588,2]
[313734270,1707633046513,-165.99,0.00022607,2]
[313734271,1707633046522,-1322.28582353,0.00022631,2]
[313734272,1707633046531,-150.29,0.00022639,2]
[313734273,1707633046540,-346.65030451,0.0002264,2]
[313734274,1707633046549,-179.39259851,0.0002267,2]
[313734275,1707633046558,-346.65030451,0.00022692,2]
[313734276,1707633046567,-3573.92552262,0.000227,2]
[313734277,1707633046576,-179.39259849,0.00022728,2]
[313734278,1707633046585,-150.0,0.00022738,2]
[313734279,1707633046594,-150.29,0.00022742,2]
[313734280,1707633046603,-150.0,0.00022744,2]
[313734281,1707633046612,-150.0,0.00022744,2]
[313734282,1707633046621,-346.65030451,0.00022744,2]
[313734283,1707633046630,-150.0,0.0002275,2]
[313734284,1707633046639,-170.24669159,0.00022761,2]
[313734285,1707633046648,-150.0,0.00022763,2]
[313734286,1707633046657,-18959.9015076,0.0002277,2]
[313734287,1707633046666,-150.0,0.00022776,2]
[313734288,1707633046675,-2337.94,0.00022779,2]